bitfinex-derivatives/quotes_BNBF0:USTF0_20250709
["timestamp","ask_amount","ask_price","bid_price","bid_amount"]
[1752069641304,1.6902268,662.08,661.51,0.26290243]
[1752069641604,1.6902268,662.07,661.51,0.26290243]
[1752069641803,1.6902268,662.1,661.51,0.26290243]
[1752069643301,1.6902268,662.09,661.51,0.26290243]
[1752069644702,1.6902268,662.03,661.51,0.26290243]
[1752069645000,1.6902268,662.0,661.51,0.26290243]
[1752069646106,1.6902268,661.97,661.51,0.26290243]
[1752069648106,1.6902268,661.98,661.51,0.26290243]
[1752069648504,1.6902268,661.97,661.51,0.26290243]
[1752069649008,1.6902268,661.98,661.51,0.26290243]
[1752069651209,1.6902268,662.03,661.51,0.26290243]
[1752069652510,1.6902268,662.02,661.51,0.26290243]
[1752069654110,1.6902268,662.01,661.51,0.26290243]
[1752069656612,1.6902268,662.0,661.51,0.26290243]
[1752069657216,1.6902268,662.01,661.51,0.26290243]
[1752069657414,1.6902268,662.0,661.51,0.26290243]
[1752069657617,1.6902268,662.01,661.51,0.26290243]
[1752069659216,1.6902268,662.0,661.51,0.26290243]
[1752069659922,1.6902268,662.01,661.51,0.26290243]
[1752069660217,1.6902268,662.02,661.51,0.26290243]
[1752069660818,1.6902268,661.99,661.51,0.26290243]
[1752069661120,1.6902268,662.01,661.51,0.26290243]
[1752069661617,1.6902268,662.0,661.51,0.26290243]
[1752069663122,1.6902268,661.99,661.52,1.75]
[1752069664124,5.60941983,662.95,661.52,1.75]
[1752069664125,1.6902268,661.98,661.52,1.75]
[1752069666926,1.6902268,662.04,661.52,1.75]
[1752069670028,1.6902268,662.03,661.52,1.75]
[1752069671331,1.6902268,662.02,661.52,1.75]
[1752069672328,1.6902268,662.01,661.52,1.75]
[1752069673131,2.24376793,662.22,661.52,1.75]
[1752069673132,1.6902268,662.0,661.52,1.75]
[1752069673630,1.6902268,662.01,661.52,1.75]
[1752069674236,1.6902268,662.0,661.52,1.75]
[1752069674534,1.6902268,662.01,661.52,1.75]
[1752069675137,1.6902268,662.0,661.52,1.75]
[1752069675432,1.6902268,662.01,661.52,1.75]
[1752069676240,1.6902268,662.0,661.52,1.75]
[1752069676636,1.6902268,661.95,661.52,1.75]
[1752069677440,1.6902268,661.91,661.52,1.75]
[1752069678143,1.6902268,661.92,661.52,1.75]
[1752069678439,1.6902268,661.91,661.52,1.75]
[1752069679244,1.69293911,661.91,661.52,1.75]
[1752069679442,1.69293911,661.92,661.52,1.75]
[1752069680243,1.69293911,661.91,661.52,1.75]
[1752069681139,1.69293911,661.9,661.52,1.75]
[1752069681940,1.69293911,661.89,661.52,1.75]
[1752069683144,1.69293911,661.88,661.52,1.75]
[1752069685844,1.69293911,661.87,661.52,1.75]
[1752069687244,1.69293911,661.88,661.52,1.75]
[1752069687641,1.69293911,661.87,661.52,1.75]
[1752069689445,1.69293911,661.85,661.52,1.75]
[1752069691542,1.69293911,661.84,661.52,1.75]
[1752069692044,1.69293911,661.85,661.52,1.75]
[1752069692943,1.69293911,661.91,661.52,1.75]
[1752069694849,1.69293911,661.92,661.52,1.75]
[1752069695344,2.24376793,662.1,661.52,1.75]
[1752069695345,1.69293911,661.88,661.52,1.75]
[1752069696249,1.69293911,661.89,661.52,1.75]
[1752069700151,1.69293911,661.9,661.52,1.75]
[1752069701356,1.69293911,661.87,661.52,1.75]
[1752069701554,1.69293911,661.92,661.52,1.75]
[1752069704861,1.69293911,661.91,661.52,1.75]
[1752069705062,1.69293911,661.92,661.52,1.75]
[1752069706365,1.69293911,661.91,661.52,1.75]
[1752069706860,1.69293911,661.92,661.52,1.75]
[1752069709567,1.69293911,661.87,661.52,1.75]
[1752069709866,1.69293911,661.84,661.52,1.75]
[1752069710768,1.69293911,661.83,661.52,1.75]
[1752069713368,1.69293911,661.84,661.52,1.75]
[1752069717866,1.69293911,661.86,661.52,1.75]
[1752069720274,1.69293911,661.85,661.52,1.75]
[1752069720476,1.69293911,661.86,661.52,1.75]
[1752069723081,1.69293911,661.86,661.32,0.26297594]
[1752069724485,1.69293911,661.87,661.32,0.26297594]
[1752069725380,1.69293911,661.87,661.33,1.639]
[1752069726982,1.69293911,661.86,661.33,1.639]
[1752069727580,1.69293911,661.84,661.33,1.639]
[1752069727781,1.69293911,661.85,661.33,1.639]
[1752069727986,1.69293911,661.94,661.33,1.639]
[1752069728186,1.69293911,661.99,661.33,1.639]
[1752069730782,1.69293911,661.98,661.33,1.639]
[1752069733289,1.69293911,661.96,661.33,3.33642855]
[1752069733584,1.69293911,661.91,661.42,1.69742855]
[1752069733986,1.69293911,661.91,661.41,1.69742855]
[1752069734988,1.69293911,661.94,661.37,1.69742855]
[1752069735187,3.36565189,662.26,661.33,1.639]
[1752069735188,1.69293911,661.96,661.38,1.69742855]
[1752069735591,1.69293911,661.95,661.39,1.69742855]
[1752069736391,1.69293911,661.96,661.39,1.69742855]
[1752069736887,1.69293911,661.95,661.39,1.69742855]
[1752069737389,1.69293911,661.92,661.36,1.69742855]
[1752069738392,1.69293911,661.9,661.33,3.33642855]
[1752069738590,1.69293911,661.9,661.33,1.639]
[1752069739288,1.69293911,661.89,661.33,1.639]
[1752069739594,1.69293911,661.88,661.34,1.69742855]
[1752069741293,1.69293911,661.86,661.37,1.69742855]
[1752069742091,1.69293911,661.87,661.37,1.69742855]
[1752069743292,1.69293911,661.87,661.38,1.69742855]
[1752069743496,1.69293911,661.87,661.37,1.69742855]
[1752069747600,1.69293911,661.89,661.35,1.69742855]
[1752069748195,1.69293911,661.88,661.35,1.69742855]
[1752069749803,1.69293911,661.88,661.36,1.762]
[1752069751105,1.69293911,661.88,661.36,3.45942855]
[1752069752104,1.69293911,661.87,661.37,1.69742855]
[1752069752505,1.69293911,661.88,661.36,3.45942855]
[1752069753305,1.69293911,661.87,661.36,3.45942855]
[1752069753506,1.69293911,661.88,661.36,3.45942855]
[1752069754206,1.69293911,661.87,661.36,3.45942855]
[1752069754705,1.69293911,661.88,661.36,3.45942855]
[1752069756203,1.69293911,661.87,661.36,3.45942855]
[1752069756403,1.69293911,661.88,661.36,3.45942855]
[1752069756609,1.69293911,661.87,661.36,3.45942855]
[1752069756806,1.69293911,661.87,661.37,1.69742855]
[1752069757407,1.69293911,661.85,661.39,1.69742855]
[1752069757607,1.69293911,661.85,661.4,1.69742855]
[1752069757913,1.69293911,661.86,661.39,1.69742855]
[1752069758108,1.69293911,661.88,661.36,3.45942855]
[1752069759513,1.69293911,661.88,661.36,1.762]
[1752069761513,1.69293911,661.84,661.36,1.762]
[1752069763316,1.69293911,661.83,661.36,1.762]
[1752069764115,1.69293911,661.86,661.36,1.762]
[1752069764313,1.69293911,661.85,661.36,1.762]
[1752069766113,1.69293911,661.86,661.36,1.762]
[1752069766620,1.69293911,661.85,661.36,1.762]
[1752069767320,1.69293911,661.86,661.36,1.762]
[1752069767817,1.69293911,661.85,661.36,1.762]
[1752069768221,1.69293911,661.86,661.36,1.762]
[1752069773224,1.69293911,661.85,661.36,1.762]
[1752069773421,1.69293911,661.86,661.36,1.762]
[1752069773923,1.69293911,661.83,661.36,1.762]
[1752069774525,1.69293911,661.82,661.36,1.762]
[1752069775528,1.69293911,661.91,661.36,1.762]
[1752069775726,1.69293911,661.94,661.36,1.762]
[1752069776024,1.69293911,661.97,661.37,1.69742855]
[1752069776227,1.69293911,661.97,661.38,1.69742855]
[1752069776627,1.69293911,661.99,661.39,1.69742855]
[1752069779532,1.69293911,661.96,661.44,1.69742855]
[1752069780131,5.60941983,662.8,661.46,1.69742855]
[1752069780132,1.69293911,661.94,661.46,1.69742855]
[1752069784334,1.69293911,661.94,661.36,1.762]
[1752069784335,1.69293911,661.92,661.49,1.69742855]
[1752069788236,1.69293911,661.92,661.48,1.69742855]
[1752069790141,1.69293911,661.93,661.48,1.69742855]
[1752069794345,1.69293911,661.93,661.47,1.69742855]
[1752069796549,1.69293911,661.93,661.48,1.541]
[1752069801249,1.69293911,661.95,661.48,1.541]
[1752069801449,1.69293911,661.93,661.48,1.541]
[1752069802751,1.69293911,661.91,661.48,1.541]
[1752069802947,1.69293911,661.92,661.48,1.541]
[1752069803346,1.69293911,661.91,661.48,1.541]
[1752069805854,1.69293911,661.85,661.48,1.541]
[1752069806148,1.69293911,661.86,661.48,1.541]
[1752069806448,1.69293911,661.85,661.48,1.541]
[1752069806649,1.69293911,661.86,661.48,1.541]
[1752069806854,1.69293911,661.85,661.48,1.541]
[1752069809056,1.69293911,661.86,661.48,1.541]
[1752069809954,1.69293911,661.9,661.48,1.541]
[1752069810457,1.69293911,661.88,661.48,1.541]
[1752069810654,1.69293911,661.87,661.48,1.541]
[1752069810852,1.69293911,661.86,661.48,1.541]
[1752069811056,1.69293911,661.87,661.48,1.541]
[1752069811357,1.69293911,661.84,661.48,1.541]
[1752069812359,1.69293911,661.82,661.48,1.541]
[1752069813355,1.69293911,661.83,661.48,1.541]
[1752069813659,1.69293911,661.77,661.03,1.69742855]
[1752069813959,1.69293911,661.76,661.11,0.26302662]
[1752069814854,1.69293911,661.75,661.11,0.26302662]
[1752069815254,1.69293911,661.76,661.11,0.26302662]
[1752069816162,1.69293911,661.77,661.11,0.26302662]
[1752069816358,1.69293911,661.77,661.12,1.667]
[1752069817160,1.69293911,661.78,661.12,1.667]
[1752069819356,1.69293911,661.79,661.12,1.667]
[1752069821365,1.69293911,661.8,661.12,1.667]
[1752069821563,1.69293911,661.79,661.12,1.667]
[1752069823366,1.69293911,661.77,661.12,1.667]
[1752069823567,1.69293911,661.79,661.12,1.667]
[1752069823767,1.69293911,661.78,661.12,1.667]
[1752069825267,1.69293911,661.79,661.12,1.667]
[1752069829170,1.69293911,661.8,661.12,1.667]
[1752069831372,1.69293911,661.79,661.12,1.667]
[1752069832272,1.69293911,661.8,661.12,1.667]
[1752069833368,1.69293911,661.77,661.12,1.667]
[1752069834370,1.69293911,661.76,661.12,1.667]
[1752069835368,1.69293911,661.76,661.11,0.26302662]
[1752069837369,1.69293911,661.85,661.11,0.26302662]
[1752069838774,1.69293911,661.85,661.12,2.045]
[1752069847275,0.26299382,661.94,661.12,2.045]
[1752069847276,1.69293911,661.8,661.12,2.045]
[1752069849979,1.69293911,661.77,661.12,2.045]
[1752069850179,1.69293911,661.76,661.12,2.045]
[1752069852383,1.69293911,661.75,661.12,2.045]
[1752069852883,1.69293911,661.76,661.12,2.045]
[1752069853584,1.69293911,661.74,661.12,2.045]
[1752069855185,1.69293911,661.73,661.12,2.045]
[1752069857084,1.69293911,661.72,661.12,2.045]
[1752069857686,1.69293911,661.73,661.12,2.045]
[1752069857885,1.69293911,661.72,661.12,2.045]
[1752069858082,1.69293911,661.82,661.12,2.045]
[1752069859183,1.69293911,661.81,661.12,2.045]
[1752069860286,1.69293911,661.8,661.12,2.045]
[1752069861184,1.69293911,661.79,661.12,2.045]
[1752069862187,1.69293911,661.8,661.12,2.045]
[1752069862589,1.69293911,661.85,661.12,2.045]
[1752069863186,1.69293911,661.86,661.12,2.045]
[1752069863791,1.69293911,661.87,661.12,2.045]
[1752069864085,1.69293911,661.81,661.12,2.045]
[1752069865089,1.69293911,661.8,661.12,3.74242855]
[1752069865789,1.69293911,661.79,661.13,1.69742855]
[1752069866185,1.69293911,661.78,661.13,1.69742855]
[1752069867190,1.69293911,661.78,661.14,1.69742855]
[1752069868090,1.69293911,661.77,661.14,1.69742855]
[1752069869088,1.69293911,661.76,661.14,1.69742855]
[1752069869289,1.69293911,661.76,661.15,1.69742855]
[1752069869585,1.69293911,661.75,661.18,1.69742855]
[1752069870289,0.26299382,661.94,661.12,2.045]
[1752069870290,1.69293911,661.74,661.19,1.69742855]
[1752069871085,1.69293911,661.73,661.2,1.69742855]
[1752069872689,1.69293911,661.73,661.21,1.69742855]
[1752069872890,1.69293911,661.72,661.21,1.69742855]
[1752069873691,1.69293911,661.71,661.24,1.69742855]
[1752069873891,1.69293911,661.69,661.26,1.69742855]
[1752069876098,1.69293911,661.7,661.25,3.83842855]
[1752069877696,1.69293911,661.69,661.26,1.69742855]
[1752069880702,1.69293911,661.69,661.25,2.141]
[1752069880703,1.69293911,661.7,661.25,2.141]
[1752069881104,1.69293911,661.67,661.25,2.141]
[1752069881303,1.69293911,661.65,661.25,2.141]
[1752069882100,1.69293911,661.61,661.25,2.141]
[1752069885203,1.69293911,661.62,661.25,2.141]
[1752069887212,1.69293911,661.62,661.11,0.26302662]
[1752069890114,1.69293911,661.63,661.12,1.693]
[1752069890512,1.69293911,661.62,661.12,1.693]
[1752069890915,1.69293911,661.6,661.12,3.39042855]
[1752069891119,1.69293911,661.66,661.12,1.693]
[1752069894716,1.69293911,661.67,661.12,1.693]
[1752069900722,1.69293911,661.68,661.12,1.693]
[1752069901023,1.69293911,661.65,661.12,1.693]
[1752069903724,1.69293911,661.67,661.12,1.693]
[1752069904521,1.69026654,661.67,661.12,1.693]
[1752069904725,1.69026654,661.66,661.12,1.693]
[1752069905326,1.69026654,661.71,661.12,1.693]
[1752069906132,1.69026654,661.75,661.12,1.693]
[1752069913731,1.69026654,661.7,661.12,1.693]
[1752069913938,1.69026654,661.69,661.12,1.693]
[1752069914137,1.69026654,661.65,661.12,1.693]
[1752069914432,1.69026654,661.62,661.12,1.693]
[1752069914632,1.69026654,661.61,661.12,1.693]
[1752069914837,1.69026654,661.63,661.12,1.693]
[1752069915738,1.69026654,661.65,661.12,1.693]
[1752069916938,1.69026654,661.66,661.12,1.693]
[1752069917944,1.69026654,661.71,661.12,1.693]
[1752069918242,1.69026654,661.7,661.12,1.693]
[1752069919547,1.69026654,661.71,661.12,1.693]
[1752069920947,1.69026654,661.72,661.12,1.693]
[1752069921247,1.69026654,661.71,661.12,1.693]
[1752069923042,2.24376793,661.89,661.12,1.693]
[1752069923043,1.69026654,661.7,661.12,1.693]
[1752069923248,1.69026654,661.73,661.12,1.693]
[1752069926250,1.69026654,661.72,661.12,1.693]
[1752069927045,1.69026654,661.7,661.12,1.693]
[1752069929250,2.24376793,661.87,661.12,1.693]
[1752069929251,1.69026654,661.69,661.12,1.693]
[1752069930452,1.69026654,661.64,661.13,1.69660876]
[1752069930747,1.69026654,661.76,661.12,3.38960876]
[1752069931445,1.69026654,661.76,661.13,1.69660876]
[1752069932351,1.69026654,661.77,661.13,1.69660876]
[1752069932753,1.69026654,661.79,661.12,1.693]
[1752069934369,1.69026654,661.84,661.13,1.69660876]
[1752069934748,1.69026654,661.83,661.13,1.69660876]
[1752069935648,1.69026654,661.84,661.13,1.69660876]
[1752069937349,1.69026654,661.85,661.14,1.69660876]
[1752069937755,1.69026654,661.94,661.23,1.69660876]
[1752069938156,1.69026654,661.93,661.23,1.69660876]
[1752069938355,1.69026654,661.94,661.23,1.69660876]
[1752069938554,1.69026654,661.95,661.22,1.69660876]
[1752069939252,1.69026654,661.96,661.21,1.69660876]
[1752069939459,1.69026654,661.93,661.25,1.69660876]
[1752069939755,1.69026654,661.93,661.24,1.69660876]
[1752069940255,1.69026654,661.93,661.12,1.693]
[1752069940256,1.69026654,661.89,661.31,1.69660876]
[1752069940859,1.69026654,661.89,661.32,1.69660876]
[1752069941262,1.69026654,661.89,661.31,1.69660876]
[1752069941461,1.69026654,661.9,661.31,1.69660876]
[1752069942362,1.69026654,661.91,661.3,1.69660876]
[1752069943659,1.69026654,661.91,661.29,1.69660876]
[1752069944160,1.69026654,661.92,661.29,1.69660876]
[1752069944363,1.69026654,661.92,661.28,1.69660876]
[1752069946063,1.69026654,661.93,661.28,1.69660876]
[1752069946763,1.69026654,661.94,661.28,1.69660876]
[1752069947362,1.69026654,661.94,661.27,1.69660876]
[1752069947566,1.69026654,661.93,661.29,1.69660876]
[1752069947764,1.69026654,661.98,661.34,1.69660876]
[1752069948465,1.69026654,661.99,661.33,1.69660876]
[1752069948670,1.69026654,662.0,661.32,1.69660876]
[1752069948869,1.69026654,662.0,661.33,1.69660876]
[1752069949065,1.69026654,662.01,661.33,1.69660876]
[1752069949269,1.69026654,662.02,661.3,1.69660876]
[1752069949471,1.69026654,662.05,661.33,1.69660876]
[1752069950267,1.69026654,662.06,661.32,1.69660876]
[1752069951469,1.69026654,662.06,661.31,1.69660876]
[1752069951773,1.69026654,662.06,661.3,1.69660876]
[1752069952274,1.69026654,662.07,661.29,1.69660876]
[1752069953171,1.69026654,662.07,661.3,1.69660876]
[1752069953375,1.69026654,662.07,661.29,1.69660876]
[1752069954275,1.69026654,662.08,661.28,3.61560876]
[1752069955277,1.69026654,662.08,661.28,1.919]
[1752069955577,1.69026654,662.09,661.28,1.919]
[1752069957378,1.69026654,662.11,661.28,1.919]
[1752069957574,1.69026654,662.16,661.28,1.919]
[1752069959279,1.69026654,662.17,661.28,1.919]
[1752069959478,1.69026654,662.16,661.28,1.919]
[1752069959974,1.69026654,662.21,661.31,1.69660876]
[1752069960378,1.69026654,662.21,661.32,1.69660876]
[1752069961875,1.69026654,662.22,661.32,1.69660876]
[1752069962275,1.69026654,662.22,661.31,1.69660876]
[1752069963278,1.69026654,662.22,661.3,1.69660876]
[1752069963580,1.69026654,662.22,661.31,1.69660876]
[1752069964274,1.69026654,662.22,661.3,1.69660876]
[1752069965577,1.69026654,662.28,661.21,1.69660876]
[1752069965780,1.69026654,662.37,661.3,1.69660876]
[1752069966180,1.69026654,662.37,661.31,1.69660876]
[1752069966482,1.69026654,662.38,661.32,2.125]
[1752069966681,1.69026654,662.4,661.32,2.125]
[1752069968278,1.69026654,662.41,661.32,2.125]
[1752069969283,1.69026654,662.42,661.32,2.125]
[1752069969785,1.69026654,662.41,661.32,2.125]
[1752069970183,1.69026654,662.4,661.32,2.125]
[1752069970679,1.69026654,662.41,661.32,2.125]
[1752069971585,1.69026654,662.45,661.32,3.82160876]
[1752069972685,1.69026654,662.44,661.32,3.82160876]
[1752069972883,1.69026654,662.44,661.32,2.125]
[1752069973081,1.69026654,662.4,661.32,3.82160876]
[1752069973285,1.69026654,662.32,661.32,3.82160876]
[1752069973485,1.69026654,662.3,661.32,2.125]
[1752069973985,1.69026654,662.27,661.32,2.125]
[1752069974684,1.69026654,662.26,661.32,2.125]
[1752069975185,1.69026654,662.25,661.32,2.125]
[1752069976187,1.69026654,662.23,661.32,2.125]
[1752069976388,1.69026654,662.26,661.32,2.125]
[1752069976685,1.69026654,662.25,661.32,2.125]
[1752069977889,1.69026654,662.26,661.32,2.125]
[1752069979188,1.69026654,662.25,661.32,2.125]
[1752069980490,1.69026654,662.24,661.32,2.125]
[1752069982291,1.69026654,662.23,661.32,2.125]
[1752069983893,1.69026654,662.24,661.32,2.125]
[1752069984392,1.69026654,662.23,661.32,2.125]
[1752069985493,7.85318776,663.42,661.33,1.69660876]
[1752069985494,1.69026654,662.21,661.33,1.69660876]
[1752069986593,1.69026654,662.14,661.32,2.125]
[1752069986789,1.69026654,662.13,661.32,2.125]
[1752069987389,1.69026654,662.12,661.32,2.125]
[1752069988292,1.69026654,662.11,661.32,2.125]
[1752069989197,1.69026654,662.1,661.32,2.125]
[1752069990504,1.685276,662.09,661.33,1.68925535]
[1752069991191,1.685276,662.09,661.34,1.68925535]
[1752069992194,1.685276,662.09,661.33,1.68925535]
[1752069992394,1.685276,662.09,661.34,1.68925535]
[1752069992699,1.685276,662.09,661.35,1.68925535]
[1752069992994,1.685276,662.08,661.35,1.68925535]
[1752069993199,1.685276,662.09,661.34,1.68925535]
[1752069993397,1.685276,662.08,661.35,1.68925535]
[1752069993893,1.685276,662.08,661.32,2.125]
[1752069993894,1.685276,662.09,661.36,1.68925535]
[1752069994297,1.685276,662.09,661.32,2.125]
[1752069994298,1.685276,662.08,661.37,1.68925535]
[1752069995298,1.685276,662.08,661.38,1.68925535]
[1752069995495,1.685276,662.07,661.39,1.68925535]
[1752069996298,1.685276,662.06,661.4,1.68925535]
[1752069996798,1.685276,662.06,661.41,1.68925535]
[1752069997298,1.685276,662.06,661.42,1.68925535]
[1752069997498,1.685276,662.05,661.42,1.68925535]
[1752069997698,1.685276,662.03,661.39,1.68925535]
[1752069998401,1.685276,662.03,661.4,1.68925535]
[1752069999398,1.685276,662.02,661.4,1.68925535]
[1752069999901,1.685276,662.03,661.4,1.68925535]
[1752070000303,1.685276,662.02,661.41,1.68925535]
[1752070002100,1.685276,662.01,661.42,1.68925535]
[1752070003104,1.685276,662.0,661.44,1.68925535]
[1752070005304,1.685276,661.99,661.45,1.68925535]
[1752070005903,1.685276,662.0,661.45,1.68925535]
[1752070006203,1.685276,661.99,661.45,1.68925535]
[1752070007407,1.685276,661.99,661.46,1.68925535]
[1752070007702,1.685276,661.99,661.45,1.68925535]
[1752070008002,1.685276,661.99,661.46,1.68925535]
[1752070008206,1.685276,661.99,661.45,1.68925535]
[1752070008508,1.685276,661.99,661.46,1.68925535]
[1752070009103,1.685276,661.99,661.45,1.68925535]
[1752070010408,1.685276,661.99,661.44,1.68925535]
[1752070012708,1.685276,661.99,661.45,3.65425535]
[1752070013415,1.685276,662.0,661.45,3.65425535]
[1752070014114,1.685276,661.99,661.45,3.65425535]
[1752070015223,1.685276,662.01,661.45,1.965]
[1752070015622,1.685276,662.02,661.45,1.965]
[1752070017421,1.685276,662.01,661.45,1.965]
[1752070017620,1.685276,662.02,661.45,1.965]
[1752070019120,1.685276,662.01,661.45,1.965]
[1752070020521,1.685276,662.02,661.45,1.965]
[1752070021422,1.685276,662.06,661.45,1.965]
[1752070022123,1.685276,662.06,661.45,3.65425535]
[1752070024124,1.685276,662.07,661.45,3.65425535]
[1752070025123,1.685276,662.07,661.46,1.68925535]
[1752070025825,1.685276,662.07,661.45,3.65425535]
[1752070026022,1.685276,662.07,661.46,1.68925535]
[1752070026220,1.685276,662.07,661.47,1.68925535]
[1752070026521,1.685276,662.07,661.46,1.68925535]
[1752070027226,1.685276,662.07,661.47,1.68925535]
[1752070027524,1.685276,662.11,661.51,1.68925535]
[1752070028127,1.685276,662.11,661.52,1.68925535]
[1752070029031,3.36565189,662.39,661.45,1.965]
[1752070029032,1.685276,662.13,661.54,1.68925535]
[1752070029330,1.685276,662.13,661.55,1.68925535]
[1752070029530,1.685276,662.14,661.54,1.68925535]
[1752070031232,1.685276,662.15,661.56,1.68925535]
[1752070031429,1.685276,662.13,661.59,1.68925535]
[1752070032232,1.685276,662.12,661.59,1.68925535]
[1752070033235,1.685276,662.11,661.61,1.68925535]
[1752070035137,1.685276,662.12,661.6,1.68925535]
[1752070035434,1.685276,662.12,661.61,1.68925535]
[1752070036138,1.685276,662.12,661.6,1.68925535]
[1752070036434,1.685276,662.12,661.61,1.68925535]
[1752070037139,1.685276,662.12,661.6,1.68925535]
[1752070037539,1.685276,662.13,661.6,1.68925535]
[1752070039539,1.685276,662.12,661.62,1.68925535]
[1752070040639,5.60941983,662.81,661.61,1.68925535]
[1752070040640,1.685276,662.2,661.61,1.68925535]
[1752070040839,1.685276,662.22,661.64,1.68925535]
[1752070041238,1.685276,662.23,661.63,1.68925535]
[1752070043146,1.685276,662.24,661.62,1.68925535]
[1752070043743,1.685276,662.24,661.63,1.68925535]
[1752070044244,1.685276,662.26,661.6,1.68925535]
[1752070046345,1.685276,662.26,661.45,1.965]
[1752070046346,1.685276,662.26,661.59,1.68925535]
[1752070047145,1.685276,662.27,661.59,1.68925535]
[1752070048347,1.685276,662.27,661.58,1.68925535]
[1752070048645,1.685276,662.28,661.59,1.68925535]
[1752070048943,1.685276,662.27,661.6,1.68925535]
[1752070050144,1.685276,662.28,661.6,1.68925535]
[1752070050444,1.685276,662.3,661.62,1.68925535]
[1752070050745,1.685276,662.3,661.63,1.68925535]
[1752070051846,1.685276,662.3,661.62,1.68925535]
[1752070052047,1.685276,662.3,661.63,1.68925535]
[1752070052242,1.685276,662.3,661.62,1.68925535]
[1752070053148,1.685276,662.31,661.62,1.68925535]
[1752070053946,1.685276,662.28,661.65,1.68925535]
[1752070054249,1.685276,662.28,661.64,1.68925535]
[1752070055151,1.685276,662.29,661.64,1.68925535]
[1752070055651,1.685276,662.29,661.63,1.68925535]
[1752070056346,1.685276,662.29,661.64,1.581]
[1752070059753,1.685276,662.3,661.64,1.581]
[1752070060153,1.685276,662.29,661.64,1.581]
[1752070060752,1.685276,662.28,661.64,1.581]
[1752070061150,1.685276,662.29,661.64,1.581]
[1752070061351,1.685276,662.28,661.64,3.27025535]
[1752070064257,1.685276,662.28,661.64,1.581]
[1752070065058,1.685276,662.28,661.64,3.27025535]
[1752070068659,1.685276,662.28,661.65,1.68925535]
[1752070069668,1.685276,662.28,661.64,1.581]
[1752070069669,1.685276,662.28,661.66,1.68925535]
[1752070070369,1.685276,662.28,661.67,1.68925535]
[1752070071471,1.685276,662.27,661.67,1.68925535]
[1752070072366,1.685276,662.27,661.64,1.581]
[1752070072367,1.685276,662.27,661.68,1.68925535]
[1752070074168,1.685276,662.27,661.69,1.68925535]
[1752070074369,1.685276,662.26,661.69,1.68925535]
[1752070075074,1.685276,662.27,661.69,1.68925535]
[1752070075271,1.685276,662.27,661.7,1.68925535]
[1752070075776,1.685276,662.28,661.68,1.68925535]
[1752070076972,1.685276,662.28,661.69,1.68925535]
[1752070077376,1.685276,662.27,661.69,1.68925535]
[1752070078273,1.685276,662.27,661.7,1.68925535]
[1752070078473,1.685276,662.27,661.69,1.68925535]
[1752070078778,1.685276,662.27,661.45,3.36825217]
[1752070078779,1.685276,662.29,661.67,1.68925535]
[1752070079476,1.685276,662.28,661.67,1.68925535]
[1752070079678,1.685276,662.35,661.57,1.68925535]
[1752070080074,1.685276,662.39,661.6,1.68925535]
[1752070080578,1.685276,662.38,661.61,1.68925535]
[1752070080778,1.685276,662.37,661.63,1.68925535]
[1752070081079,1.685276,662.35,661.66,1.68925535]
[1752070081576,1.685276,662.37,661.69,1.68925535]
[1752070082279,1.685276,662.37,661.7,1.68925535]
[1752070082476,1.685276,662.37,661.7,1.447]
[1752070082780,1.685276,662.31,661.78,1.68925535]
[1752070083280,1.685276,662.3,661.79,1.68925535]
[1752070083480,1.685276,662.31,661.79,1.68925535]
[1752070084181,1.685276,662.31,661.8,1.68925535]
[1752070084376,1.685276,662.31,661.79,1.68925535]
[1752070085079,1.685276,662.31,661.8,1.68925535]
[1752070085785,1.685276,662.3,661.8,1.68925535]
[1752070088083,1.685276,662.31,661.78,1.68925535]
[1752070090982,1.685276,662.31,661.79,1.68925535]
[1752070092285,2.24376793,662.43,661.7,1.447]
[1752070092487,1.69313066,662.31,661.79,1.69444309]
[1752070093192,1.69313066,662.3,661.79,1.69444309]
[1752070093786,1.69313066,662.31,661.79,1.69444309]
[1752070094088,1.69313066,662.3,661.79,1.69444309]
[1752070094685,1.69313066,662.3,661.78,1.69444309]
[1752070095192,1.69313066,662.29,661.78,1.69444309]
[1752070097191,1.69313066,662.3,661.77,1.69444309]